Cogmind - Beta 9.4 @@@ ROGUE MODE // 2020.02.02 @ 10:23:37 Player: PabloBot Result: Core destroyed Performance ------------- Evolutions (0) 0 Regions Visited (1) 200 Robots Destroyed (13) 65 Value Destroyed (421) 421 Prototype IDs (0) 0 Alien Tech Used (0) 0 Bonus (0) 0 TOTAL SCORE: 686 Bonus ------- None Cogmind --------- Core Integrity 0/250 Matter 295/300 Energy 23/100 System Corruption 0% Temperature Cool (630) Movement Treading (160) Location -10/Materials Parts ------- > --- POWER (1) -------- (None) > --- PROPULSION (2) --- Light Treads Improved Treads > --- UTILITY (2) ------ Small Storage Unit > --- WEAPON (2) ------- Particle Cannon > --- INVENTORY (6) ---- Light Treads Improved Treads Improved Treads Grenade Launcher Peak State ------------ > --- POWER ------------ Ion Engine > --- PROPULSION ------- Improved Treads Improved Treads > --- UTILITY ---------- Small Storage Unit > --- WEAPON ----------- Particle Cannon Particle Cannon > --- INVENTORY -------- Light Ion Engine Light Treads Improved Treads Improved Treads Particle Cannon Grenade Launcher [Rating: 10] Favorites ----------- Power Light Ion Engine Engine Light Ion Engine Propulsion Light Treads Treads Light Treads Utility Small Storage Unit Storage Small Storage Unit Weapon Light Assault Rifle Energy Gun Medium Laser Energy Cannon Particle Cannon Ballistic Gun Light Assault Rifle Launcher Grenade Launcher Build | -11 -10 ------- Run | Scr Mat Slots Evolved . | . . Power . | . . Propulsion . | . . Utility . | . . Weapon . | . . Parts Attached 19 | 6 13 Power 3 | 1 2 Engine 3 | 1 2 Core . | . . Reactor . | . . Propulsion 5 | 2 3 Treads 5 | 2 3 Leg . | . . Wheel . | . . Hover . | . . Flight . | . . Utility 1 | 1 . Device . | . . Storage 1 | 1 . Processor . | . . Hackware . | . . Protection . | . . Artifact . | . . Weapon 10 | 2 8 Energy Gun 1 | 1 . Energy Cannon 3 | . 3 Ballistic Gun 4 | 1 3 Ballistic Cannon . | . . Launcher 2 | . 2 Special Weapon . | . . Impact Weapon . | . . Slashing Weapon . | . . Piercing Weapon . | . . Special Melee Weapon . | . . Unidentified Prototypes . | . . Parts Lost 5 | . 5 Power 1 | . 1 Propulsion 1 | . 1 Utility . | . . Weapon 3 | . 3 Highest Loss Streak 4 | . 4 Average Slot Usage (%) 83 | . 83 Engine 13 | . 13 Treads 28 | . 28 Storage 14 | . 14 Energy Gun 2 | . 2 Energy Cannon 7 | . 7 Ballistic Gun 16 | . 16 Naked Turns . | . . Heaviest Build 17 | 10 17 Greatest Support 46 | 40 46 Greatest Overweight (x) . | . . Average Overweight (x) . | . . Largest Inventory Capacity 6 | 6 6 Average Capacity 5 | 5 6 Most Carried 6 | 2 6 Average Carried 3 | 1 3 Final Capacity 6 | 6 6 Final Carried 4 | 2 4 Class Distribution -------------------- 100% | Mutant Dominant Class ---------------- Mutant | -10/Materials Resources | -11 -10 ----------- Run | Scr Mat Matter Collected 480 | 205 275 Remotely . | . . Salvage Created 462 | . 462 Parts 17 | . 17 Haulers Intercepted . | . . Recyclers Shooed 1 | . 1 Parts Field Recycled . | . . Retrieved Matter . | . . Parts Self-Destructed . | . . Prevented . | . . Kills | -11 -10 ------- Run | Scr Mat Combat Hostiles Destroyed 10 | . 10 Guns 5 | . 5 Cannons 3 | . 3 AOE 2 | . 2 Classes Destroyed 3 | . 3 Recycler 1 | . 1 Watcher 2 | . 2 Grunt 10 | . 10 Best Kill Streak 3 | . 3 Combat Bots Only 3 | . 3 Max Kills in Single Turn 1 | . 1 Gunslinging . | . . Exploded 1 | . 1 Melee . | . . Uniques/NPCs Destroyed . | . . Combat | -11 -10 -------- Run | Scr Mat Damage Taken 759 | . 759 Core 259 | . 259 Absorbed by Shields . | . . Core Remaining (%) 100 | 100 . Volleys Fired 46 | . 46 Largest 2 | . 2 Hottest 136 | . 136 Shots Fired 85 | . 85 Gun 50 | . 50 Cannon 31 | . 31 Launcher 4 | . 4 Special . | . . Kinetic 41 | . 41 Thermal 40 | . 40 Explosive 4 | . 4 Electromagnetic . | . . Robot Hit Streak 8 | . 8 Robot Miss Streak 4 | . 4 Penetration Max . | . . Secondary Targets . | . . Shots Hit Robots 51 | . 51 Core Hits 25 | . 25 Critical Hits . | . . Critical Kills . | . . Critical Parts Destroyed . | . . Melee Attacks . | . . Impact . | . . Slashing . | . . Piercing . | . . Sneak Attacks . | . . Combat Hostiles . | . . Follow-up Attacks . | . . Damage Inflicted 1064 | . 1064 Guns 353 | . 353 Cannons 332 | . 332 Explosions 379 | . 379 Melee . | . . Ramming . | . . Kinetic 291 | . 291 Thermal 542 | . 542 Explosive 231 | . 231 Electromagnetic . | . . Impact . | . . Slashing . | . . Piercing . | . . Highest Corruption . | . . Average Corruption . | . . Corruption Purged . | . . Overload Shots . | . . Overflow Damage 101 | . 101 Projectiles 1 | . 1 Explosions 100 | . 100 Melee . | . . Knockbacks . | . . Impact . | . . Kinetic . | . . Secondary . | . . Self-Inflicted Damage . | . . Shots . | . . Rammed . | . . Targets Rammed . | . . Kicked . | . . Crushed . | . . Highest Temperature 898 | . 898 Average Temperature 254 | . 254 Received Heat Transfer 354 | . 354 Effects 28 | . 28 Shutdowns 3 | . 3 Energy Bleed 2 | . 2 Matter Decay 1 | . 1 Short Circuit 2 | . 2 Damage (minor) 4 | . 4 Damage (major) 12 | . 12 Damage (core) 4 | . 4 Siege Activations . | . . Robots Corrupted . | . . Combat Hostiles . | . . Parts Fried . | . . Impact Corruptions . | . . Robots Melted . | . . Combat Hostiles . | . . Parts Melted 1 | . 1 Heat Transferred 877 | . 877 Parts Sabotaged . | . . Parts Stolen . | . . Parts Stripped . | . . Power Chain Reactions . | . . Missiles Intercepted . | . . Alert | -11 -10 ------- Run | Scr Mat Peak Influence 225 | . 225 Average Influence 83 | . 92 Maximum Alert Level 1 | . 1 Low Security (%) 87 | 100 86 Level 1 12 | . 13 Level 2 . | . . Level 3 . | . . Level 4 . | . . Level 5 . | . . High Security . | . . Max Security . | . . Squads Dispatched 2 | . 2 Investigation 1 | . 1 Extermination . | . . Reinforcement 1 | . 1 Assault . | . . Garrison . | . . Intercept . | . . Construction Impeded . | . . Haulers Reinforced . | . . Stealth | -11 -10 --------- Run | Scr Mat Distress Signals . | . . Communications Jammed . | . . Distress Signals . | . . Times Spotted 17 | . 17 Peak Tracking Total 5 | . 5 Tactical Retreats 2 | . 2 Traps | -11 -10 ------- Run | Scr Mat Traps Triggered 1 | . 1 Indirectly . | . . Trap Hack Attempts . | . . Triggered . | . . Disarmed . | . . Reprogrammed . | . . Reused . | . . Traps Extracted . | . . Installed . | . . Triggered . | . . Machines | -11 -10 ---------- Run | Scr Mat Machines Disabled 3 | . 3 Max in Single Turn 2 | . 2 Machines Sabotaged . | . . Garrisons Compromised . | . . Overloaded Fab Kills . | . . Fab Network Shutdowns . | . . Hacking | -11 -10 --------- Run | Scr Mat Machines Accessed 3 | . 3 Terminals 2 | . 2 Fabricators . | . . Repair Stations . | . . Recycling Units 1 | . 1 Scanalyzers . | . . Garrison Access . | . . Total Hacks 8 | . 8 Successful 2 | . 2 Failed 6 | . 6 Catastrophic 2 | . 2 Database Lockouts . | . . Manual . | . . Terminals 4 | . 4 Fabricators . | . . Repair Stations . | . . Recycling Units 4 | . 4 Scanalyzers . | . . Garrison Access . | . . Terminal Hacks 2 | . 2 Record 1 | . 1 Dispatch Records 1 | . 1 Fabricator Hacks . | . . Repair Station Hacks . | . . Recycling Unit Hacks . | . . Scanalyzer . | . . Garrison Access Hacks . | . . Unauthorized Hacks . | . . Terminals . | . . Fabricators . | . . Repair Stations . | . . Recycling Units . | . . Scanalyzers . | . . Garrison Access . | . . Data Cores Recovered . | . . Used . | . . Hacking Detections 3 | . 3 Full Trace Events 1 | . 1 Feedback Events . | . . Feedback Blocked . | . . Robot Schematics Acquired . | . . Robots Built . | . . Matter . | . . Time . | . . Total Robot Build Rating . | . . Part Schematics Acquired . | . . Parts Built . | . . Matter . | . . Time . | . . Total Part Build Rating . | . . Parts Repaired . | . . Time . | . . Parts Recycled . | . . Recycled Matter . | . . Retrieved Matter . | . . Retrieved Components . | . . Parts Scanalyzed . | . . Part Schematics Acquired . | . . Parts Damaged . | . . Bothacking | -11 -10 ------------ Run | Scr Mat Used RIF Installer . | . . Robots Hacked . | . . Non-combat . | . . Combat . | . . Robot Hacks Applied . | . . Relay Couplers Released . | . . Robots Rewired . | . . Allies Hacked . | . . Hacks Repelled . | . . Allies | -11 -10 -------- Run | Scr Mat Total Allies . | . . Largest Group . | . . Highest-Rated Group . | . . Highest-Rated Ally . | . . Total Orders . | . . Ally Attacks . | . . Total Damage . | . . Kills . | . . Allies Corrupted . | . . Allies Melted . | . . Intel | -11 -10 ------- Run | Scr Mat Robot Analysis Total . | . . Derelict Logs Recovered . | . . Drone Launches . | . . Drone Recoveries . | . . Exploration | -11 -10 ------------- Run | Scr Mat Turns Passed 902 | 84 818 Spaces Moved 399 | 50 349 Core 5 | 5 . Treads 394 | 45 349 Legs . | . . Wheels . | . . Hover . | . . Flight . | . . Fastest Speed 50 | 50 160 Average Speed 158 | 149 160 Slowest Speed 160 | 160 160 Overloaded Moves . | . . Propulsion Burnouts . | . . Robots Hopped . | . . Cave-ins Triggered . | . . Exploration Rate (%) 22 | 4 40 Regions Visited 1 Branch Regions . Pre-discovered Areas . | . . Known Exits Taken . | . . Unknown Exits Taken 1 | 1 . Scrap Searched . | . . Spaces Dug . | . . Terrain Destroyed 20 | . 20 Melee . | . . Projectile . | . . AOE 20 | . 20 Actions | -11 -10 --------- Run | Scr Mat Total 587 | 57 530 Wait 107 | . 107 Move 398 | 49 349 Hop . | . . Pick Up 9 | 2 7 Fast Attach 8 | 6 2 Attach 4 | . 4 Detach 1 | . 1 Swap 7 | . 7 Drop 7 | . 7 Fire 46 | . 46 Melee . | . . Ram . | . . Kick . | . . Crush . | . . Escape Stasis . | . . Rewire . | . . Trap . | . . Miscellaneous . | . . Route ------- -11/Scrapyard -10/Materials (discovered 1 exit: [*Mat]) History --------- Turn | Location | Event 13 | -11/Scrapyard | Discovered new exit (range 16) 85 | -11/Scrapyard | Entered Materials 312 | -10/Materials | Build established: Mutant 759 | -10/Materials | Discovered new exit (range 7) 880 | -10/Materials | Core integrity fell below 50% 883 | -10/Materials | Core integrity fell below 20% 904 | -10/Materials | Core destroyed Last Messages --------------- 00885_ Ion Engine destroyed. 00886_ G-34 Mercenary destroyed. 00887_ Overheating: Short circuit. 00887_ Broken Particle Cannon permanently disabled. 00888_ Overheating: Energy bleed (-8). 00889_ K-01 Serf collects debris. 00891_ Overheating: Matter decay (-67). 00891_ Acquired 20 matter. 00893_ Overheating: Short circuit. 00893_ Broken Particle Cannon permanently disabled. 00893_ K-01 Serf collects debris. 00893_ Imp. Treads destroyed. 00895_ Overheating: Energy bleed (-3). 00896_ Overheating: Imp. Treads damaged (-12). 00896_ Overheating: Sml. Storage Unit damaged (-4). 00896_ Overheating: Broken Particle Cannon damaged (-11). 00897_ K-01 Serf collects debris. 00899_ Broken Particle Cannon destroyed. 00901_ K-01 Serf collects debris. 00904_ Overheating: Core damaged (-45). Map ----- +----------------------------------------------------+ | | | | | | | | | | | | | | | | | | | | | ?????????????????????????????????????????????????? | | ?????????????????????????????????????????????????? | | ?????????????????????????????????????????????????? | | ?????????????????????????????????????????????????? | | ????????????###########??????????????????????????? | | ???????###### T ! #??????????????????????????? | | ???????# ## #??????????????????????????? | | ???????# < ## #??????????????????????????? | | ???????# ## """ """ #??????????????????????????? | | ???????+ ## """ """ #??????????????????????????? | | ???????# ## """ """ #??????????????????????????? | | ???????# ## #??????????????????????????? | | ######## ## #??????????????????????????? | | #####+#####??????????????????????????? | | ####### =%*=% =############??????????????????? | | * #??# k =%! @ #??????????????????? | | [ #??# g ######## #??????????????????? | | !!#??# ########??????# #??????????????????? | | !!#??###+###?????????????# #??????????????????? | | ]#???? ???????????????# #??????????????????? | | #??? ! ???????????????# ??????????????????? | | ####??? ?????????????? ?????????????????? | | ?????? ??????????????# ????????????????? | | ????? ??????????????# """ ???????????????? | | #####! ?????????????? """ "??????????????? | | + ?????????????? """ ""?????????????? | | ##### ?????????????? ??? ?????????????? | | ????##########????????????? ???? ?????????????? | | ??????????????????????????? ???????????????????? | | ??????????????????????????? ???????????????????? | | ??????????????????????????? ???????????????????? | | ?????????????????????????????????????????????????? | | ?????????????????????????????????????????????????? | | ?????????????????????????????????????????????????? | | ?????????????????????????????????????????????????? | | ?????????????????????????????????????????????????? | | ?????????????????????????????????????????????????? | | ?????????????????????????????????????????????????? | | ?????????????????????????????????????????????????? | | ?????????????????????????????????????????????????? | +----------------------------------------------------+ Best States ------------- Heat Dissipation 25 Energy Generation 10 Energy Capacity 250 Matter Stores 300 Matter Capacity 300 Sight Range 16 Terrain Scan Density 10 Evasion (%) 40 Recoil Reduction 2 Item Schematics ----------------- None Robot Schematics ------------------ None Fabricated ------------ Nothing Alien Tech Used ----------------- None Achievements -------------- None Challenges ------------ None Game ------ Seed ForceBurstMediator Manual? 0 Play Time 00:12:09 Cumulative 14.2 hours Start 2020.02.02 @ 10:09:47 End 2020.02.02 @ 10:23:37 Sessions 1 Manual Loads 0 Difficulty Rogue Special Mode None Game No. 12 Rogue 12 Adventurer 0 Explorer 0 Win Type - Total 0 Types 0/0/0/0/0/0/0 Lore% 9 Gallery% 17 Achievement% 13 Wizard Run 0 Options --------- ASCII 0 Keyboard 0 Movement Numpad Keybinds 0 Fullscreen 1 Font 12/Terminus Map View 83x54 Tactical HUD 1 Map Filters NONE Filters NONE Steam 1 RUN: f6f23400-763d-41f2-879a-45e8cfce8f3f